[Event "Romanian Championship 2024"]
[Site "Eforie Nord"]
[Date "2024.02.26"]
[Round "3.3"]
[White "Prisacaru, Stefan-Emilian"]
[Black "Bulmaga, Irina"]
[Result "1/2-1/2"]
[ECO "E49"]
[WhiteElo "2289"]
[BlackElo "2439"]
[Annotator "TA"]
[PlyCount "130"]
[EventDate "2024.02.24"]
[EventType "swiss"]
[EventCountry "ROU"]
[SourceTitle "playchess.com"]
[Source "ChessBase"]
[SourceQuality "1"]
[TimeControl "40/5400+30:900+30"]

{[%evp 19,130,-12,10,8,14,11,14,19,21,25,36,29,56,27,34,46,84,37,95,35,28,27,24,7,11,2,40,0,0,0,18,12,11,0,0,-2,0,0,0,0,0,0,0,0,0,0,0,0,0,0,0,0,0,0,0,0,0,0,0,0,0,0,0,0,0,0,0,0,0,0,0,0,0,0,0,-27,0,0,0,0,0,0,0,0,0,0,0,0,0,0,0,0,0,0,0,0,0,0,0,0,0,0,0,0,0,0,0,0,0,0,0,0,0]} 1. d4 {[%emt 0:00:02]} Nf6 {[%emt 0:00:07]} 2. c4 {[%emt 0:00:02]} e6 {[%emt 0:00:10]} 3. Nc3 {[%emt 0:00:12]} Bb4 {[%emt 0:00:51]} 4. e3 {[%emt 0:00:16]} O-O {[%emt 0:01:27]} 5. Bd3 {[%emt 0:00:23]} d5 {[%emt 0:02:46]} 6. a3 {[%emt 0:00:10]} Bxc3+ {[%emt 0:01:04]} 7. bxc3 {[%emt 0:00:05]} dxc4 {[%emt 0:00:46]} 8. Bxc4 {[%emt 0:00:04]} c5 {[%emt 0:00:06]} 9. Ne2 {[%emt 0:00:30]} Qc7 {[%emt 0:00:34]} 10. Bd3 {[%emt 0:00:07]} e5 {[%emt 0:04:31]} 11. dxe5 {[%emt 0:00:29]} Qxe5 {[%emt 0:00:15]} 12. O-O {[%emt 0:01:24]} Nc6 {[%emt 0:01:24]} 13. Qc2 {[%emt 0:06:10]} Qe7 {[%emt 0:07:33]} 14. Ng3 {[%emt 0:09:17]} Ne5 {[%emt 0:10:41]} 15. Be2 {[%emt 0:01:07]} Re8 {[%emt 0:03:38]} 16. c4 {[%emt 0:06:37]} Bd7 {[%emt 0:03:11]} 17. Bb2 {[%emt 0:03:01]} Bc6 {[%emt 0:04:18]} 18. Rad1 {[%emt 0:09:21]} (18. e4 $16) 18... Qe6 {[%emt 0:10:04]} (18... Ng6 $14) 19. Rd2 {[%emt 0:41:02]} (19. e4 $16) 19... Ng6 $14 {[%emt 0:12:50]} 20. Rfd1 {[%emt 0:06:32]} Ne4 {[%emt 0:06:56] Against Rd6} 21. Nxe4 {[%emt 0:03:26]} Qxe4 {[%emt 0:00:26]} (21... Bxe4 {keeps more tension.} 22. Qc3 f6 23. Rd6 Qf5) 22. Qxe4 {[%emt 0:01:31]} Bxe4 {[%emt 0:00:04]} 23. Bd3 {[%emt 0:00:13][%cal Be2d3,Bd3f5,Bf5g4][%mdl 32]} Bc6 {[%emt 0:04:16]} 24. Bf5 {[%emt 0:03:11]} Nf8 {[%emt 0:04:08]} 25. Bc3 {[%emt 0:03:36] Black is weak on the dark squares} Ba4 {[%emt 0:05:05]} 26. Rb1 {[%emt 0:02:54]} b6 {[%emt 0:00:42]} 27. Bg4 {[%emt 0:00:58]} Rad8 {[%emt 0:01:40]} 28. Rbb2 {[%emt 0:01:07]} Bc6 {[%emt 0:06:19]} 29. Kf1 $1 {[%emt 0:00:33]} f6 {[%emt 0:01:31]} 30. Bf3 {[%emt 0:00:29]} Bxf3 {[%emt 0:00:24]} 31. gxf3 {[%emt 0:00:00]} Kf7 {[%emt 0:00:38]} 32. a4 {[%emt 0:00:22]} Ke7 {[%emt 0:00:55]} 33. a5 {[%emt 0:00:41]} Rxd2 {[%emt 0:00:28]} 34. Bxd2 $11 {[%emt 0:00:07][%mdl 4096] Endgame. KRB-KRN} Nd7 {[%emt 0:01:55]} 35. Bc3 {[%emt 0:01:03]} Kd6 {[%emt 0:01:11]} 36. Ke2 {[%emt 0:00:50]} Kc6 {[%emt 0:01:04]} 37. f4 {[%emt 0:00:32]} Rb8 {[%emt 0:02:28]} 38. axb6 {[%emt 0:00:28]} Nxb6 {[%emt 0:00:27]} 39. Ba5 {[%emt 0:00:32]} Ra8 {[%emt 0:01:00]} 40. Rc2 {[%emt 0:00:00]} Re8 {[%emt 0:00:00]} 41. f3 {[%emt 0:02:23]} f5 {[%emt 0:02:29]} 42. Kd3 {[%emt 0:04:03]} Rd8+ {[%emt 0:02:23]} 43. Ke2 {[%emt 0:00:06]} Rd6 {[%emt 0:02:14]} 44. Bxb6 {[%emt 0:07:37]} axb6 {[%emt 0:00:03] KR-KR} 45. Ra2 {[%emt 0:00:17]} Rh6 {[%emt 0:00:45]} 46. Kd3 {[%emt 0:01:18]} Rh3 {[%emt 0:01:17]} 47. Rf2 {[%emt 0:00:46]} b5 {[%emt 0:01:51]} 48. cxb5+ {[%emt 0:01:46] The position is equal.} Kxb5 {[%emt 0:00:02]} 49. Rg2 {[%emt 0:00:45]} g6 {[%emt 0:01:49][%cal Bg7g6,Bg6g5][%mdl 32]} 50. Rf2 {[%emt 0:00:12]} Kb6 {[%emt 0:03:07]} 51. Kc3 {[%emt 0:00:25]} Kc7 {[%emt 0:00:06]} 52. Kb3 {[%emt 0:01:14]} Kd6 {[%emt 0:00:12]} 53. Kc3 {[%emt 0:00:47]} h6 {[%emt 0:01:04]} 54. Kc4 {[%emt 0:00:42]} g5 {[%emt 0:00:40] And now ...gxf4 would win.} 55. Rd2+ {[%emt 0:00:30]} Ke6 {[%emt 0:00:19]} 56. Kxc5 {[%emt 0:00:33]} Rxf3 {[%emt 0:01:53]} 57. Rd6+ {[%emt 0:00:15]} Kf7 {[%emt 0:00:11]} 58. Rxh6 {[%emt 0:00:06]} gxf4 {[%emt 0:00:13]} 59. exf4 {[%emt 0:00:22]} Rxf4 {[%emt 0:00:03]} 60. Kd5 {[%emt 0:00:18]} Re4 {[%emt 0:00:09]} 61. Ra6 {[%emt 0:00:56]} Re2 {[%emt 0:01:21]} 62. h4 {[%emt 0:00:33][%cal Bh2h4,Bh4h5,Bh5h6][%mdl 32]} Kg7 {[%emt 0:00:21]} 63. h5 {[%emt 0:00:26]} f4 {[%emt 0:00:19]} 64. h6+ {[%emt 0:00:25]} Kh7 {[%emt 0:00:53]} 65. Rf6 {[%emt 0:00:08]} f3 {[%emt 0:06:23] Weighted Error Value: White=0.06 (flawless) /Black=0.07 (flawless) .  Mistake:       	White=2     	Black=1      Inaccurate:     	White=3     	Black=4      OK:         	White=31    	Black=25     Best:        	White=1     	---        Strong:       	White=1     	---} 1/2-1/2

[Event "Romanian Championship 2024"]
[Site "Eforie Nord"]
[Date "2024.02.26"]
[Round "3.4"]
[White "Magold, Filip"]
[Black "Cnejev, Vladimir-Alexandru"]
[Result "1/2-1/2"]
[ECO "C84"]
[WhiteElo "2400"]
[BlackElo "2311"]
[Annotator "TA"]
[PlyCount "63"]
[EventDate "2024.02.24"]
[EventType "swiss"]
[EventCountry "ROU"]
[SourceTitle "playchess.com"]
[Source "ChessBase"]
[SourceQuality "1"]
[TimeControl "40/5400+30:900+30"]

{[%evp 17,63,22,36,29,27,16,13,2,22,22,24,33,66,62,59,26,83,18,31,12,20,16,25,16,25,15,13,0,0,-35,-39,-41,23,22,25,14,12,-80,0,0,0,6,14,13,14,13,15,14]} 1. e4 {[%emt 0:00:18]} e5 {[%emt 0:00:17]} 2. Nf3 {[%emt 0:00:07]} Nc6 {[%emt 0:00:11]} 3. Bb5 {[%emt 0:00:04]} a6 {[%emt 0:00:07]} 4. Ba4 {[%emt 0:00:04]} Nf6 {[%emt 0:00:10]} 5. d3 {[%emt 0:00:07]} b5 {[%emt 0:00:35]} 6. Bb3 {[%emt 0:00:05]} Be7 {[%emt 0:00:07]} 7. O-O {[%emt 0:01:42]} d6 {[%emt 0:01:37]} 8. a4 {[%emt 0:02:38]} Bg4 {[%emt 0:00:29]} 9. c3 {[%emt 0:02:12]} O-O {[%emt 0:09:24]} 10. h3 {[%emt 0:08:22]} Bh5 {[%emt 0:02:54]} 11. Nbd2 {[%emt 0:06:29][%cal Bb1d2,Bd2f1,Bf1g3][%mdl 32]} Na5 {[%emt 0:05:37]} 12. Bc2 {[%emt 0:03:32]} c5 {[%emt 0:06:20]} 13. Re1 {[%emt 0:01:07]} Qc7 {[%emt 0:10:21]} 14. Nf1 {[%emt 0:01:12]} Rad8 {[%emt 0:10:28]} 15. Ng3 {[%emt 0:07:20]} Bg6 {[%emt 0:00:37]} 16. Nh4 {[%emt 0:02:49]} d5 {[%emt 0:04:14]} (16... b4 $11 {keeps the balance.}) 17. Nxg6 {[%emt 0:02:00]} ({White should try} 17. axb5 $16 {Threatens to win with Ngf5.} axb5 18. Ngf5) 17... hxg6 $11 {[%emt 0:09:19]} 18. axb5 {[%emt 0:07:57]} axb5 {[%emt 0:08:20]} 19. exd5 {[%emt 0:03:13]} Nxd5 {[%emt 0:03:59]} 20. Qf3 {[%emt 0:07:16]} c4 {[%emt 0:05:43]} 21. dxc4 {[%emt 0:10:12]} Nxc4 {[%emt 0:03:08]} 22. b3 {[%emt 0:09:53]} Ncb6 {[%emt 0:01:02]} 23. Bb2 {[%emt 0:00:28][%cal Oc3c4]} f5 {[%emt 0:09:03]} 24. c4 $1 {[%emt 0:05:08]} e4 {[%emt 0:01:07] [#]} ({Black should play} 24... Bf6 $1 $15 25. Nh5 bxc4 (25... gxh5 26. Qxf5 e4 27. Qxe4 $16) 26. Nxf6+ gxf6) 25. Nxe4 $1 {[%emt 0:00:04]} bxc4 {[%emt 0:02:19]} 26. Nc3 {[%emt 0:04:44] And now bxc4 would win.} Nb4 {[%emt 0:01:09] Excellent horsemanship.} 27. Qe2 {[%emt 0:08:03] [#]} (27. Re2 $11) 27... Bf6 {[%emt 0:00:50]} (27... Bc5 $1 $17 {aiming for ...Kh7.} 28. Red1 Rfe8 29. Rxd8 Qxd8) 28. Nb5 {[%emt 0:01:38] The position is equal.} Qc5 {[%emt 0:02:48]} 29. Bxf6 {[%emt 0:00:19]} Rxf6 {[%emt 0:00:14]} 30. bxc4 {[%emt 0:00:06]} Nxc2 $1 {[%emt 0:00:35]} 31. Qxc2 {[%emt 0:00:04]} Qxc4 {[%emt 0:01:30]} 32. Qxc4+ {[%emt 0:04:48] Weighted Error Value: White=0.19 (very precise) /Black=0.14 (very precise) .  Mistake:       	White=2     	Black=3      Inaccurate:     	White=2     	Black=1      OK:         	White=8     	Black=5      Best:        	White=1     	Black=2      Strong:       	White=1     	Black=1      Brilliant:      	White=1     	---} 1/2-1/2

[Event "Romanian Championship 2024"]
[Site "Eforie Nord"]
[Date "2024.02.26"]
[Round "3.5"]
[White "Stoleriu, George"]
[Black "Serban, Cristian-Stefan"]
[Result "1/2-1/2"]
[ECO "B15"]
[WhiteElo "2391"]
[BlackElo "2309"]
[Annotator "RC"]
[PlyCount "114"]
[EventDate "2024.02.24"]
[EventType "swiss"]
[EventCountry "ROU"]
[SourceTitle "playchess.com"]
[Source "ChessBase"]
[SourceQuality "1"]
[TimeControl "40/5400+30:900+30"]

1. e4 {[%emt 0:00:03]} c6 {[%emt 0:03:35]} 2. d4 {[%emt 0:01:03]} d5 {[%emt 0:00:07]} 3. Nc3 {[%emt 0:00:03]} dxe4 {[%emt 0:00:06]} 4. Nxe4 {[%emt 0:00:03]} Nf6 {[%emt 0:00:06]} 5. Nxf6+ {[%emt 0:00:04]} exf6 {[%emt 0:00:04]} 6. Be3 {[%emt 0:00:04]} Qb6 {[%emt 0:18:13]} 7. Qe2 {[%emt 0:00:41]} Be7 {[%emt 0:02:17]} 8. O-O-O {[%emt 0:04:01]} Qa5 {[%emt 0:01:09]} 9. Kb1 {[%emt 0:15:10]} Be6 {[%emt 0:03:15]} 10. c4 {[%emt 0:01:40]} O-O {[%emt 0:01:20]} 11. Qc2 {[%emt 0:04:13]} Rd8 {[%emt 0:02:41]} 12. Bd3 {[%emt 0:02:59]} h6 {[%emt 0:02:09]} 13. Ne2 {[%emt 0:00:39]} Na6 {[%emt 0:08:17]} 14. Bd2 {[%emt 0:09:37]} Bb4 {[%emt 0:02:11]} 15. a3 {[%emt 0:07:08]} Bxd2 {[%emt 0:00:11]} 16. Qxd2 {[%emt 0:00:04]} Qxd2 {[%emt 0:01:08]} 17. Rxd2 {[%emt 0:01:31]} Kf8 {[%emt 0:03:53]} 18. Rhd1 {[%emt 0:07:17]} Nc7 {[%emt 0:08:26]} 19. Rc1 {[%emt 0:14:19]} Rd6 {[%emt 0:05:12]} 20. Be4 {[%emt 0:01:41]} Rad8 {[%emt 0:00:15]} 21. b3 {[%emt 0:01:15]} a5 {[%emt 0:03:24]} 22. Kb2 {[%emt 0:02:10]} f5 {[%emt 0:04:02]} 23. Bf3 {[%emt 0:02:21]} g5 {[%emt 0:00:10]} 24. g3 {[%emt 0:00:08]} Ne8 {[%emt 0:05:06]} 25. a4 {[%emt 0:06:22]} Nc7 {[%emt 0:11:18]} 26. Rcd1 {[%emt 0:09:28]} Na6 {[%emt 0:00:07]} 27. Bg2 {[%emt 0:00:13]} Nb4 {[%emt 0:01:27]} 28. h4 {[%emt 0:03:05]} Ke7 {[%emt 0:02:21]} 29. hxg5 {[%emt 0:00:08]} hxg5 {[%emt 0:00:04]} 30. Rh1 {[%emt 0:00:03]} Kf6 {[%emt 0:03:12]} 31. Kc3 {[%emt 0:01:54]} Rg8 {[%emt 0:00:13]} 32. Ng1 {[%emt 0:00:31]} Ke7 {[%emt 0:03:09]} 33. Nf3 {[%emt 0:00:23]} f4 {[%emt 0:00:11]} 34. gxf4 {[%emt 0:02:50]} gxf4 {[%emt 0:00:06]} 35. Bf1 {[%emt 0:00:04]} Rdd8 {[%emt 0:02:23]} 36. Rh4 {[%emt 0:01:16]} Rg4 {[%emt 0:00:38]} 37. Rh5 {[%emt 0:00:03]} b6 {[%emt 0:01:19]} 38. Bh3 {[%emt 0:01:31]} Rg7 {[%emt 0:00:14]} 39. Re2 {[%emt 0:00:51]} Kd6 {[%emt 0:02:53]} 40. Rh6 {[%emt 0:00:00]} Re8 {[%emt 0:00:00]} 41. Rf6 {[%emt 0:02:52]} Re7 {[%emt 0:09:23]} 42. Bxe6 {[%emt 0:12:33]} Rxe6 {[%emt 0:00:04]} 43. Rexe6+ {[%emt 0:00:33]} fxe6 {[%emt 0:00:07]} 44. Rxf4 {[%emt 0:01:22]} Rg2 {[%emt 0:00:36]} 45. Ne1 {[%emt 0:02:26]} Rg1 {[%emt 0:00:11]} 46. Re4 {[%emt 0:00:03]} c5 {[%emt 0:02:10]} 47. Kd2 {[%emt 0:01:02]} Nc6 {[%emt 0:01:40]} 48. dxc5+ {[%emt 0:00:02]} bxc5 {[%emt 0:00:05]} 49. Nc2 {[%emt 0:00:29]} Rf1 {[%emt 0:00:46]} 50. Rf4 {[%emt 0:01:01]} Rb1 {[%emt 0:01:31]} 51. Kc3 {[%emt 0:00:10]} Ke5 {[%emt 0:01:07]} 52. Rf3 {[%emt 0:00:20]} Rc1 {[%emt 0:01:50]} 53. Re3+ {[%emt 0:00:03]} Kd6 {[%emt 0:00:58]} 54. Kd2 {[%emt 0:00:47]} Rf1 {[%emt 0:00:15]} 55. Ke2 {[%emt 0:01:29]} Rc1 {[%emt 0:00:23]} 56. Kd2 {[%emt 0:00:04]} Rf1 {[%emt 0:00:05]} 57. Ke2 {[%emt 0:00:02]} Rc1 {[%emt 0:00:33]} 1/2-1/2

[Event "Romanian Championship 2024"]
[Site "Eforie Nord"]
[Date "2024.02.26"]
[Round "3.6"]
[White "Nastase, Robert-Paul"]
[Black "Lupulescu, Constantin"]
[Result "0-1"]
[ECO "B23"]
[WhiteElo "2226"]
[BlackElo "2589"]
[Annotator "TA"]
[PlyCount "74"]
[EventDate "2024.02.24"]
[EventType "swiss"]
[EventCountry "ROU"]
[SourceTitle "playchess.com"]
[Source "ChessBase"]
[SourceQuality "1"]
[TimeControl "40/5400+30:900+30"]

{[%evp 9,74,0,25,0,0,0,15,11,100,-1,5,4,-8,-29,-31,-31,-16,-15,-21,-17,0,0,0,-2,-3,-7,20,12,31,35,14,-3,8,10,12,0,0,0,0,-18,-21,-38,-42,-33,-32,-29,-22,-31,0,-20,-22,-29,-47,-22,-25,-83,-68,-70,-79,-110,-69,-117,-118,-94,-94,-94,-94]} 1. e4 {[%emt 0:07:11]} c5 {[%emt 0:00:05]} 2. Nc3 {[%emt 0:00:03]} a6 {[%emt 0:00:43]} 3. g3 {[%emt 0:00:08]} b5 {[%emt 0:01:35]} 4. Bg2 {[%emt 0:00:06]} Bb7 {[%emt 0:00:28]} 5. Nh3 {[%emt 0:00:16]} d6 {[%emt 0:07:59]} 6. O-O {[%emt 0:00:08]} e6 {[%emt 0:04:00]} 7. d3 {[%emt 0:00:21]} Nf6 {[%emt 0:02:40]} 8. f4 {[%emt 0:00:07] The position is equal.} Be7 {[%emt 0:01:06] [#]} (8... Qd7 $11 {remains equal.}) 9. Nf2 {[%emt 0:04:51]} (9. e5 $1 $16 Bxg2 10. Kxg2) 9... Nc6 {[%emt 0:01:18]} 10. g4 {[%emt 0:00:14]} h6 {[%emt 0:04:49]} 11. a4 {[%emt 0:06:12]} b4 {[%emt 0:00:33]} 12. Ne2 {[%emt 0:00:04][%cal Bc3e2,Be2g3,Bg3e4][%mdl 32]} d5 {[%emt 0:13:33]} 13. Ng3 {[%emt 0:10:26]} dxe4 {[%emt 0:05:36]} 14. Nfxe4 {[%emt 0:08:16]} Nxe4 {[%emt 0:05:26]} 15. Nxe4 {[%emt 0:00:19]} Qd4+ {[%emt 0:04:14]} 16. Kh1 {[%emt 0:00:05]} c4 {[%emt 0:02:09]} 17. dxc4 {[%emt 0:01:55]} Qxc4 {[%emt 0:08:19]} 18. b3 {[%emt 0:09:01]} Qd4 {[%emt 0:00:07]} 19. Qxd4 {[%emt 0:10:35]} Nxd4 {[%emt 0:00:08]} 20. Rd1 {[%emt 0:00:03] [#] Nd6+ would now be deadly.} O-O-O {[%emt 0:06:35]} (20... Rd8 $5 21. Nd6+ Rxd6 (21... Bxd6 22. Bxb7 Bc5 23. Bxa6 $14) 22. Bxb7 O-O $11 (22... Nxc2 23. Rxd6 Bxd6 24. Ra2 $11)) 21. Bb2 {[%emt 0:00:29][%cal Bc1b2,Bb2d4,Bd4b6][%mdl 32]} Bxe4 {[%emt 0:09:29]} (21... Nxc2 22. Rdc1 f6 (22... Bxe4 $2 23. Bxe4 Rd2 24. Rxc2+ $18) 23. Rxc2+ $18) 22. Bxd4 {[%emt 0:10:26]} Bxg2+ {[%emt 0:00:51]} (22... Bxc2 $2 23. Rac1 Bf6 24. Rxc2+ $18) 23. Kxg2 {[%emt 0:00:02]} f6 {[%emt 0:04:59]} 24. Bb6 {[%emt 0:02:09]} Rd6 {[%emt 0:00:26]} 25. a5 {[%emt 0:00:11]} h5 {[%emt 0:02:23]} 26. h3 {[%emt 0:00:50]} hxg4 {[%emt 0:01:04]} 27. hxg4 {[%emt 0:00:24]} Rc6 {[%emt 0:00:05]} 28. Rd2 {[%emt 0:01:17]} Rh4 {[%emt 0:03:58]} 29. Kg3 {[%emt 0:02:49]} f5 {[%emt 0:00:56]} 30. g5 {[%emt 0:03:25]} Rg4+ {[%emt 0:00:29]} 31. Kf3 {[%emt 0:00:07]} Bd6 {[%emt 0:05:44]} 32. Be3 {[%emt 0:04:58]} (32. Rad1 $1 $11 Rxf4+ (32... Bxf4 33. Rd8+ Kb7 34. R1d7+ Bc7 35. Rxg7 $11) 33. Kg2 Rg4+ 34. Kf1 Rf4+ 35. Ke1) 32... e5 $36 {[%emt 0:00:09][%mdl 2048] Black is more active.} 33. fxe5 {[%emt 0:05:04]} Bxe5 {[%emt 0:00:03]} 34. Rad1 {[%emt 0:00:10]} Bc7 {[%emt 0:01:32] Against Rd8+. Black is more active.} 35. Rg1 {[%emt 0:04:45]} (35. Re2 $1 $15) 35... Rxg1 {[%emt 0:00:14] Black is better.} (35... Bxa5 36. Rxg4 fxg4+ 37. Kxg4 $11) 36. Bxg1 {[%emt 0:00:05]} g6 {[%emt 0:00:22]} (36... Bxa5 37. Rd5 Bd8 38. Rxf5 $16) 37. Bd4 {[%emt 0:01:34]} Rd6 {[%emt 0:02:45] Weighted Error Value: White=0.16 (very precise) /Black=0.12 (very precise) .  Mistake:       	White=3     	Black=1      Inaccurate:     	White=1     	Black=2      OK:         	White=9     	Black=17     Best:        	White=1     	---} 0-1

[Event "Romanian Championship 2024"]
[Site "Eforie Nord"]
[Date "2024.02.26"]
[Round "3.7"]
[White "Nevednichy, Vladislav"]
[Black "Antal, Hunor-Zoltan"]
[Result "0-1"]
[ECO "B90"]
[WhiteElo "2451"]
[BlackElo "2272"]
[Annotator "RC"]
[PlyCount "74"]
[EventDate "2024.02.24"]
[EventType "swiss"]
[EventCountry "ROU"]
[SourceTitle "playchess.com"]
[Source "ChessBase"]
[SourceQuality "1"]
[TimeControl "40/5400+30:900+30"]

1. e4 {[%emt 0:00:02]} c5 {[%emt 0:00:29]} 2. Nf3 {[%emt 0:00:29]} d6 {[%emt 0:00:23]} 3. d4 {[%emt 0:00:05]} cxd4 {[%emt 0:00:22]} 4. Nxd4 {[%emt 0:00:04]} Nf6 {[%emt 0:00:11]} 5. Nc3 {[%emt 0:00:03]} a6 {[%emt 0:03:01]} 6. Nb3 {[%emt 0:00:19]} e6 {[%emt 0:08:39]} 7. g4 {[%emt 0:10:27]} Be7 {[%emt 0:01:33]} 8. g5 {[%emt 0:00:36]} Nfd7 {[%emt 0:00:08]} 9. h4 {[%emt 0:00:24]} Nc6 {[%emt 0:02:28]} 10. Be3 {[%emt 0:02:31]} b5 {[%emt 0:01:41]} 11. a3 {[%emt 0:20:34]} Bb7 {[%emt 0:14:15]} 12. Qe2 {[%emt 0:14:14]} Rc8 {[%emt 0:10:19]} 13. Bg2 {[%emt 0:06:48]} Nce5 {[%emt 0:05:18]} 14. Rd1 {[%emt 0:04:05]} h6 {[%emt 0:15:06]} 15. f4 {[%emt 0:06:26]} Nc4 {[%emt 0:01:28]} 16. Bc1 {[%emt 0:00:03]} hxg5 {[%emt 0:02:47]} 17. hxg5 {[%emt 0:00:03]} Rxh1+ {[%emt 0:00:24]} 18. Bxh1 {[%emt 0:00:01]} Qb6 {[%emt 0:11:14]} 19. Rd3 {[%emt 0:00:59]} Nc5 {[%emt 0:09:50]} 20. Nxc5 {[%emt 0:02:55]} Qxc5 {[%emt 0:00:07]} 21. Qf2 {[%emt 0:02:41]} b4 {[%emt 0:02:33]} 22. Qxc5 {[%emt 0:03:28]} dxc5 {[%emt 0:00:05]} 23. Nb1 {[%emt 0:01:12]} e5 {[%emt 0:03:23]} 24. f5 {[%emt 0:10:13]} Nd6 {[%emt 0:00:51]} 25. f6 {[%emt 0:01:55]} gxf6 {[%emt 0:00:15]} 26. gxf6 {[%emt 0:00:02]} Bf8 {[%emt 0:03:01]} 27. Bg5 {[%emt 0:08:46]} c4 {[%emt 0:01:40]} 28. Re3 {[%emt 0:01:15]} c3 {[%emt 0:01:26]} 29. axb4 {[%emt 0:02:59]} cxb2 {[%emt 0:00:31]} 30. Kd1 {[%emt 0:00:40]} Rd8 {[%emt 0:00:28]} 31. Ke2 {[%emt 0:00:45]} a5 {[%emt 0:00:42]} 32. bxa5 {[%emt 0:00:46]} Ba6+ {[%emt 0:00:06]} 33. Kd1 {[%emt 0:00:33]} Nc4+ {[%emt 0:00:46]} 34. Rd3 {[%emt 0:00:02]} Na3 {[%emt 0:00:24]} 35. Rxd8+ {[%emt 0:00:10]} Kxd8 {[%emt 0:00:06]} 36. c4 {[%emt 0:00:29]} Bxc4 {[%emt 0:00:34]} 37. Bc1 {[%emt 0:00:46]} Bb3+ {[%emt 0:00:13]} 0-1

[Event "Romanian Championship 2024"]
[Site "Eforie Nord"]
[Date "2024.02.26"]
[Round "3.8"]
[White "Manolache, Marius"]
[Black "Daianu, Cristian-Clement"]
[Result "1-0"]
[ECO "D00"]
[WhiteElo "2387"]
[BlackElo "2201"]
[Annotator "TA"]
[PlyCount "65"]
[EventDate "2024.02.24"]
[EventType "swiss"]
[EventCountry "ROU"]
[SourceTitle "playchess.com"]
[Source "ChessBase"]
[SourceQuality "1"]
[TimeControl "40/5400+30:900+30"]

{[%evp 9,65,-20,0,-4,0,0,0,0,0,0,39,45,30,28,29,28,39,36,41,33,45,22,30,21,34,33,21,21,46,9,79,50,50,53,41,59,133,139,183,181,203,203,175,177,259,249,566,566,562,552,693,564,29979,29979,29988,29989,29987,29988]} 1. d4 {[%emt 0:00:06]} Nf6 {[%emt 0:03:08]} 2. Bf4 {[%emt 0:00:09]} d5 {[%emt 0:03:45]} 3. e3 {[%emt 0:00:14]} Bf5 {[%emt 0:06:55]} 4. Nc3 {[%emt 0:05:03]} e6 {[%emt 0:04:40]} 5. Nb5 {[%emt 0:04:48]} Na6 {[%emt 0:04:28]} 6. a3 {[%emt 0:00:17]} c6 {[%emt 0:09:34]} 7. Nc3 {[%emt 0:00:07]} Nb8 {[%emt 0:00:22]} 8. Nf3 {[%emt 0:03:44] The position is equal.} Bd6 {[%emt 0:03:22]} 9. Ne5 {[%emt 0:00:18]} Qc7 {[%emt 0:06:15]} 10. g4 {[%emt 0:03:08]} Bg6 {[%emt 0:01:26]} 11. h4 {[%emt 0:02:49] [#] h5 is the strong threat.} Ne4 {[%emt 0:12:46]} 12. Ne2 {[%emt 0:03:06]} f6 $1 {[%emt 0:08:35]} 13. Nxg6 {[%emt 0:00:09]} hxg6 {[%emt 0:00:03]} 14. Bg2 {[%emt 0:00:34][%cal Bf1g2,Bg2h1,Bh1e4,Be4g6][%mdl 32]} g5 {[%emt 0:07:14]} 15. hxg5 {[%emt 0:05:48]} Rxh1+ {[%emt 0:02:25]} 16. Bxh1 {[%emt 0:00:04] Hoping for gxf6.} fxg5 {[%emt 0:05:41]} 17. Bxe4 {[%emt 0:00:47] Threatens to win with Bg6+.} gxf4 {[%emt 0:00:05]} 18. Bg6+ {[%emt 0:00:05]} Kd8 {[%emt 0:00:25]} 19. Qd2 {[%emt 0:02:55][%cal Re2f4]} (19. e4 $5) 19... Qe7 {[%emt 0:04:15]} (19... fxe3 $11 20. Qxe3 Qe7) 20. exf4 {[%emt 0:02:41] White is more active.} Qh4 {[%emt 0:01:08] And now ...Qh1+ would win.} 21. O-O-O {[%emt 0:02:10][%cal Ba1d1,Bd1h1,Bh1h8][%mdl 32]} Qxf2 {[%emt 0:06:50]} 22. Rh1 {[%emt 0:04:19] aiming for Rh8+.} Kc7 {[%emt 0:03:50] [#]} (22... Nd7 $14) 23. Rh8 $1 $36 {[%emt 0:09:25][%mdl 2048] Black is under strong pressure.} Qf1+ {[%emt 0:01:07]} 24. Qd1 {[%emt 0:00:31]} Bxf4+ {[%emt 0:00:06]} 25. Nxf4 {[%emt 0:00:03]} Qxf4+ {[%emt 0:00:05]} 26. Kb1 {[%emt 0:00:04]} a6 {[%emt 0:02:52]} (26... Qf6 $142) 27. Qe1 $18 {[%emt 0:07:13]} Qxg4 $2 {[%emt 0:02:06]} (27... a5 {is more resistant.} 28. Bd3 (28. Qxe6 Qf1+ 29. Ka2 Qc4+ 30. b3 Qxd4 $18) 28... Kb6 29. Qxe6 Qxd4) 28. Qe5+ {[%emt 0:00:31]} Kb6 {[%emt 0:00:03]} 29. Qxg7 {[%emt 0:00:11] Black must now prevent Rh7.} (29. Rxb8 $2 Rxb8 30. Qxb8 Qxg6 $19) 29... Qg3 {[%emt 0:00:49]} 30. Rh7 {[%emt 0:02:09]} Ra7 {[%emt 0:00:06]} 31. Qf8 {[%emt 0:02:53][%csl Gd4][%cal Rf8c5] Wards off Qd6. White mates.} Qg1+ {[%emt 0:00:45]} 32. Ka2 {[%emt 0:00:06][%csl Gd4][%cal Rf8c5]} Qxd4 {[%emt 0:00:42]} 33. Qd8+ {[%emt 0:00:10] Weighted Error Value: White=0.04 (flawless) /Black=0.53.  Mistake:       	---       	Black=4      Inaccurate:     	White=2     	Black=3      OK:         	White=9     	Black=8      Best:        	White=7     	Black=2      Strong:       	White=1     	Black=1} 1-0